bitfinex/quotes_BTCUSD_20250719
["timestamp","ask_amount","ask_price","bid_price","bid_amount"]
[1752930629563,0.22272463,118190.0,118170.0,0.25237971]
[1752930629798,0.00846102,118180.0,118170.0,0.59437971]
[1752930629903,0.01692225,118180.0,118170.0,0.59437971]
[1752930630119,0.00846102,118180.0,118170.0,0.59437971]
[1752930630563,0.00846102,118180.0,118170.0,0.60273305]
[1752930630993,0.197342,118190.0,118170.0,0.78315423]
[1752930631217,0.20580259,118190.0,118170.0,0.78215423]
[1752930631441,0.21426332,118190.0,118170.0,0.78315423]
[1752930631658,0.2227242,118190.0,118170.0,0.60273305]
[1752930631904,0.00846102,118180.0,118170.0,0.60273305]
[1752930632130,0.2142639,118190.0,118170.0,0.60273305]
[1752930632345,0.2142639,118190.0,118170.0,0.60173305]
[1752930632763,0.22272485,118190.0,118170.0,0.77480089]
[1752930632989,0.2142639,118190.0,118170.0,0.77480089]
[1752930633880,0.20580302,118190.0,118170.0,0.77480089]
[1752930634101,0.20580302,118190.0,118170.0,0.77280089]
[1752930634346,0.02538184,118190.0,118170.0,0.77480089]
[1752930634582,0.19734229,118190.0,118170.0,0.77280089]
[1752930635188,0.20580302,118190.0,118170.0,0.78118121]
[1752930635391,0.19734229,118190.0,118170.0,0.78318121]
[1752930635568,0.22086543,118200.0,118190.0,0.01198]
[1752930635748,0.40974648,118200.0,118190.0,0.22887028]
[1752930636155,0.41184648,118200.0,118190.0,0.22887028]
[1752930636550,0.03221953,118200.0,118190.0,0.40929146]
[1752930636864,0.01691925,118200.0,118190.0,0.40929146]
[1752930637041,0.02537905,118200.0,118190.0,0.22887028]
[1752930637275,0.20580023,118200.0,118190.0,0.22887028]
[1752930637707,0.20680023,118200.0,118190.0,0.22887028]
[1752930638114,0.01691925,118200.0,118190.0,0.22887028]
[1752930638319,0.03383893,118200.0,118190.0,0.22987028]
[1752930638523,0.03383893,118200.0,118190.0,0.23087028]
[1752930638739,0.03383885,118200.0,118190.0,0.23087028]
[1752930639345,0.21426003,118200.0,118190.0,0.23087028]
[1752930640323,0.20580016,118200.0,118190.0,0.23087028]
[1752930640537,0.19734043,118200.0,118190.0,0.23087028]
[1752930641027,0.22462055,118210.0,118190.0,0.23087028]
[1752930641242,0.24153923,118210.0,118200.0,0.08551028]
[1752930641458,0.24363923,118210.0,118200.0,0.08551028]
[1752930641667,0.41282965,118210.0,118200.0,0.08551028]
[1752930641852,0.22763923,118210.0,118200.0,0.08757028]
[1752930642077,0.21103923,118210.0,118200.0,0.08757028]
[1752930642281,0.38022965,118210.0,118200.0,0.08757028]
[1752930642490,0.38122965,118210.0,118200.0,0.08757028]
[1752930643307,0.20357971,118210.0,118200.0,0.08757028]
[1752930643510,0.01469894,118210.0,118200.0,0.08757028]
[1752930643715,0.20679851,118210.0,118200.0,0.08757028]
[1752930643932,0.001,118210.0,118200.0,0.08757028]
[1752930644182,0.001,118210.0,118200.0,0.10580028]
[1752930644394,0.001,118210.0,118200.0,0.30463651]
[1752930644637,0.001,118210.0,118200.0,0.12210028]
[1752930644841,0.001,118210.0,118200.0,0.30463651]
[1752930645051,0.001,118210.0,118200.0,0.30252146]
[1752930645260,0.001,118210.0,118200.0,0.12210028]
[1752930645470,0.001,118210.0,118200.0,0.12421533]
[1752930646853,0.001,118210.0,118200.0,0.30463651]
[1752930647066,0.001,118210.0,118200.0,0.30252146]
[1752930647279,0.02537525,118220.0,118200.0,0.30252146]
[1752930647477,0.21425502,118220.0,118210.0,0.21730516]
[1752930647769,0.21425502,118220.0,118210.0,0.21725028]
[1752930647770,0.20579643,118220.0,118210.0,0.21725028]
[1752930648785,0.20629457,118220.0,118210.0,0.21825028]
[1752930648966,0.21475323,118220.0,118210.0,0.21825028]
[1752930649394,0.20629457,118220.0,118210.0,0.21825028]
[1752930649758,0.19783627,118220.0,118210.0,0.21925028]
[1752930649982,0.20277287,118220.0,118210.0,0.21925028]
[1752930650187,0.18937762,118220.0,118210.0,0.21925028]
[1752930650396,0.19783606,118220.0,118210.0,0.21925028]
[1752930650799,0.00049814,118220.0,118210.0,0.24725732]
[1752930651030,0.00049814,118220.0,118210.0,0.7676785]
[1752930651230,0.00049814,118220.0,118210.0,0.58725732]
[1752930651439,0.00049814,118220.0,118210.0,0.57888028]
[1752930651629,0.01741474,118220.0,118210.0,0.57888028]
[1752930651830,0.01741474,118220.0,118210.0,0.56228028]
[1752930652047,0.19783592,118220.0,118210.0,0.56228028]
[1752930652604,0.19783592,118220.0,118210.0,0.55925028]
[1752930653425,0.20629443,118220.0,118210.0,0.55925028]
[1752930653607,0.19783592,118220.0,118210.0,0.55925028]
[1752930653917,0.20629443,118220.0,118210.0,0.55925028]
[1752930654171,0.19783592,118220.0,118210.0,0.55925028]
[1752930654390,0.20629443,118220.0,118210.0,0.55925028]
[1752930654601,0.19783592,118220.0,118210.0,0.55925028]
[1752930654782,0.21475316,118220.0,118210.0,0.55925028]
[1752930654991,0.38392927,118220.0,118210.0,0.55925028]
[1752930655204,0.37547104,118220.0,118210.0,0.55925028]
[1752930655807,0.20629493,118220.0,118210.0,0.55925028]
[1752930656291,0.20629486,118220.0,118210.0,0.55925028]
[1752930656506,0.21475366,118220.0,118210.0,0.55925028]
[1752930656877,0.38392977,118220.0,118210.0,0.55925028]
[1752930657051,0.02587368,118220.0,118210.0,0.55925028]
[1752930657285,0.00049814,118220.0,118210.0,0.77324231]
[1752930657499,0.0089563,118220.0,118210.0,0.78884231]
[1752930657713,0.00049814,118220.0,118210.0,0.78884231]
[1752930658127,0.00049814,118220.0,118210.0,0.78784231]
[1752930658772,0.00049814,118220.0,118210.0,0.60742113]
[1752930659582,0.00049814,118220.0,118210.0,0.60642113]
[1752930659795,0.00049814,118220.0,118210.0,0.60742113]
[1752930660207,0.00049814,118220.0,118210.0,0.60842113]
[1752930660531,0.0089563,118220.0,118210.0,0.59282113]
[1752930660738,0.00049814,118220.0,118210.0,0.59182113]
[1752930661365,0.18937755,118220.0,118210.0,0.59182113]
[1752930661607,0.60210053,118220.0,118210.0,0.42751028]
[1752930661828,0.60210053,118220.0,118210.0,0.21739028]
[1752930661829,0.585184,118220.0,118210.0,0.21739028]
[1752930663143,0.46467314,118220.0,118210.0,0.21739028]
[1752930665348,0.46467314,118220.0,118210.0,0.08751028]
[1752930665577,0.46467314,118220.0,118210.0,0.21735028]
[1752930668831,0.46467314,118220.0,118210.0,0.08751028]
[1752930669043,0.46467314,118220.0,118210.0,0.21727028]
[1752930670186,0.22434164,118220.0,118210.0,0.21727028]
[1752930670399,0.46467314,118220.0,118210.0,0.21727028]
[1752930685183,0.58484158,118220.0,118210.0,0.21727028]
[1752930686558,0.22434164,118220.0,118210.0,0.21727028]
[1752930686758,0.58484158,118220.0,118210.0,0.21727028]
[1752930690002,0.22434164,118220.0,118210.0,0.21727028]
[1752930690222,0.58484158,118220.0,118210.0,0.21727028]
[1752930704814,0.58484158,118220.0,118210.0,0.08751028]
[1752930705036,0.76509155,118220.0,118210.0,0.21731028]
[1752930707401,0.58484158,118220.0,118210.0,0.21731028]
[1752930707632,0.76509155,118220.0,118210.0,0.21731028]
[1752930707839,0.58484158,118220.0,118210.0,0.21731028]
[1752930709775,0.76509155,118220.0,118210.0,0.21731028]
[1752930711777,0.58484158,118220.0,118210.0,0.21731028]
[1752930712098,0.76509155,118220.0,118210.0,0.21731028]
[1752930715419,0.58484158,118220.0,118210.0,0.21731028]
[1752930716091,0.76509155,118220.0,118210.0,0.21731028]
[1752930716332,0.76509155,118220.0,118210.0,0.21631028]
[1752930716780,0.76509155,118220.0,118210.0,0.21531028]
[1752930719956,0.58484158,118220.0,118210.0,0.21531028]
[1752930720838,0.76509155,118220.0,118210.0,0.08551028]
[1752930721068,0.17769489,118180.0,118170.0,0.03459]
[1752930721288,0.35794486,118180.0,118170.0,0.25165028]
[1752930721506,0.35794486,118180.0,118170.0,0.46213028]
[1752930721726,0.53819483,118180.0,118170.0,0.59169028]
[1752930722183,0.35794486,118180.0,118170.0,0.59169028]
[1752930722398,0.35794486,118180.0,118170.0,0.59483971]
[1752930722616,0.17769489,118180.0,118170.0,0.59783971]
[1752930722862,0.35794486,118180.0,118170.0,0.59483971]
[1752930724346,0.35794486,118180.0,118170.0,0.59683971]
[1752930725249,0.34472811,118180.0,118170.0,0.59683971]
[1752930726121,0.35318963,118180.0,118170.0,0.59683971]
[1752930726346,0.17293966,118180.0,118170.0,0.59683971]
[1752930726572,0.35318963,118180.0,118170.0,0.59683971]
[1752930729679,0.20563446,118180.0,118170.0,0.59683971]
[1752930730435,0.00846066,118190.0,118180.0,0.34]
[1752930730642,0.02538163,118190.0,118180.0,0.46203028]
[1752930730850,0.00846038,118190.0,118180.0,0.64228025]
[1752930731069,0.03383928,118200.0,118190.0,0.0314]
[1752930731297,0.22254998,118200.0,118190.0,0.25378551]
[1752930731513,0.21408975,118200.0,118190.0,0.25167028]
[1752930731718,0.22254998,118200.0,118190.0,0.25167028]
[1752930732130,0.39175471,118200.0,118190.0,0.25167028]
[1752930732585,0.20562966,118200.0,118190.0,0.25167028]
[1752930732791,0.21408989,118200.0,118190.0,0.25167028]
[1752930733856,0.21408982,118200.0,118190.0,0.25167028]
[1752930734627,0.38329455,118200.0,118190.0,0.25167028]
[1752930736426,0.02537969,118200.0,118190.0,0.23587028]
[1752930736630,0.03383978,118200.0,118190.0,0.25097028]
[1752930736806,0.21408975,118200.0,118190.0,0.25097028]
[1752930737004,0.20562973,118200.0,118190.0,0.25097028]
[1752930737209,0.20562966,118200.0,118190.0,0.25097028]
[1752930737618,0.38329462,118200.0,118190.0,0.25097028]
[1752930738285,0.21408989,118200.0,118190.0,0.25097028]
[1752930739401,0.38329462,118200.0,118190.0,0.25097028]
[1752930740099,0.38329462,118200.0,118190.0,0.23587028]
[1752930740931,0.20562966,118200.0,118190.0,0.23587028]
[1752930741133,0.20562966,118200.0,118190.0,0.25147028]
[1752930741349,0.21408975,118200.0,118190.0,0.25147028]
[1752930741548,0.21408975,118200.0,118190.0,0.23587028]
[1752930741763,0.38329448,118200.0,118190.0,0.23587028]
[1752930742774,0.21408975,118200.0,118190.0,0.23587028]
[1752930742988,0.22254998,118200.0,118190.0,0.23587028]
[1752930743127,0.38329491,118200.0,118190.0,0.23587028]
[1752930744003,0.38329491,118200.0,118190.0,0.23278028]
[1752930744422,0.38329491,118200.0,118190.0,0.21718028]
[1752930745999,0.20304494,118200.0,118190.0,0.21718028]
[1752930746257,0.21409018,118200.0,118190.0,0.23348028]
[1752930746479,0.21409018,118200.0,118190.0,0.23660028]
[1752930747079,0.20562995,118200.0,118190.0,0.23660028]
[1752930747516,0.19716986,118200.0,118190.0,0.23660028]
[1752930748370,0.20562995,118200.0,118190.0,0.23660028]
[1752930748597,0.1971695,118200.0,118190.0,0.23660028]
[1752930748833,0.20562952,118200.0,118190.0,0.23660028]
[1752930749973,0.00845959,118200.0,118190.0,0.43265025]
[1752930750206,0.19716822,118210.0,118190.0,0.77265025]
[1752930750437,0.00845902,118210.0,118200.0,0.44413028]
[1752930750665,0.36944495,118220.0,118200.0,0.64231025]
[1752930750908,0.38326212,118220.0,118210.0,0.21491028]
[1752930751129,0.38326212,118220.0,118210.0,0.21704028]
[1752930751130,0.2030106,118220.0,118210.0,0.21704028]
[1752930751349,0.19716693,118220.0,118210.0,0.21704028]
[1752930751570,0.20562501,118220.0,118210.0,0.22016028]
[1752930752009,0.21408367,118220.0,118210.0,0.22016028]
[1752930752240,0.22304054,118220.0,118210.0,0.21704028]
[1752930752712,0.19766464,118220.0,118210.0,0.21704028]
[1752930752959,0.20612315,118220.0,118210.0,0.21704028]
[1752930753187,0.21458181,118220.0,118210.0,0.21704028]
[1752930753413,0.20612315,118220.0,118210.0,0.21704028]
[1752930754100,0.02587318,118220.0,118210.0,0.21704028]
[1752930754320,0.22304054,118220.0,118210.0,0.21704028]
[1752930754850,0.20612315,118220.0,118210.0,0.22016028]
[1752930755074,0.21458181,118220.0,118210.0,0.23646028]
[1752930755492,0.21458181,118220.0,118210.0,0.24195084]
[1752930755710,0.21458181,118220.0,118210.0,0.22565084]
[1752930756551,0.22304061,118220.0,118210.0,0.22565084]
[1752930756758,0.21458181,118220.0,118210.0,0.22565084]
[1752930759047,0.20612315,118220.0,118210.0,0.22565084]
[1752930759254,0.22304054,118220.0,118210.0,0.21704028]
[1752930760099,0.22304047,118220.0,118210.0,0.21704028]
[1752930760615,0.22304047,118220.0,118210.0,0.22570928]
[1752930760846,0.20612315,118220.0,118210.0,0.22570928]
[1752930761060,0.20612315,118220.0,118210.0,0.24090928]
[1752930761312,0.18920627,118220.0,118210.0,0.24402928]
[1752930761504,0.20612323,118220.0,118210.0,0.24402928]
[1752930761657,0.20612323,118220.0,118210.0,0.22882928]
[1752930762066,0.20612323,118220.0,118210.0,0.22570928]
[1752930762299,0.21458196,118220.0,118210.0,0.22570928]
[1752930763965,0.21458189,118220.0,118210.0,0.22570928]
[1752930764420,0.20612323,118220.0,118210.0,0.22570928]
[1752930764683,0.1976645,118220.0,118210.0,0.24170928]
[1752930764883,0.20612287,118220.0,118210.0,0.24170928]
[1752930765221,0.1976645,118220.0,118210.0,0.24482928]
[1752930765531,0.20612294,118220.0,118210.0,0.24482928]
[1752930765662,0.21458153,118220.0,118210.0,0.22882928]
[1752930766240,0.22304026,118220.0,118210.0,0.22670928]
[1752930766437,0.22304026,118220.0,118210.0,0.22770928]
[1752930766580,0.22304026,118220.0,118210.0,0.22667215]
[1752930766995,0.22304026,118220.0,118210.0,0.22611353]
[1752930767211,0.22304026,118220.0,118210.0,0.22555465]
[1752930767413,0.22304026,118220.0,118210.0,0.22499594]
[1752930767614,0.22304026,118220.0,118210.0,0.22443696]
[1752930767813,0.22304026,118220.0,118210.0,0.22424489]
[1752930768018,0.21458153,118220.0,118210.0,0.22424489]
[1752930768479,0.04279029,118220.0,118210.0,0.22424489]
[1752930768682,0.22304026,118220.0,118210.0,0.22424489]
[1752930769259,0.2145816,118220.0,118210.0,0.22424489]
[1752930770188,0.22304033,118220.0,118210.0,0.22424489]
[1752930772155,0.22342557,118220.0,118210.0,0.22424489]
[1752930772792,0.21496684,118220.0,118210.0,0.22424489]
[1752930772992,0.03471687,118220.0,118210.0,0.22424489]
[1752930773206,0.2145816,118220.0,118210.0,0.22385965]
[1752930773806,0.20612294,118220.0,118210.0,0.56385965]
[1752930774022,0.21458153,118220.0,118210.0,0.56694965]
[1752930774640,0.21458153,118220.0,118210.0,0.56385965]
[1752930776867,0.21458145,118220.0,118210.0,0.56385965]
[1752930777281,0.00049814,118220.0,118210.0,0.5814905]
[1752930777492,0.00049814,118220.0,118210.0,0.6133905]
[1752930779444,0.00049814,118220.0,118210.0,0.5970905]
[1752930780271,0.0089563,118220.0,118210.0,0.5940005]
[1752930780491,0.19766464,118220.0,118210.0,0.5784005]
[1752930780707,0.20612315,118220.0,118210.0,0.5784005]
[1752930780928,0.20809308,118220.0,118210.0,0.5784005]
[1752930781232,0.23605167,118220.0,118210.0,0.5784005]
[1752930781450,0.24451033,118220.0,118210.0,0.5784005]
[1752930781663,0.24299308,118220.0,118210.0,0.5784005]
[1752930781879,0.25145167,118220.0,118210.0,0.5784005]
[1752930782091,0.24299308,118220.0,118210.0,0.5784005]
[1752930782441,0.23453464,118220.0,118210.0,0.5697315]
[1752930782667,0.20263457,118220.0,118210.0,0.55519065]
[1752930782882,0.24199308,118220.0,118210.0,0.55519065]
[1752930783509,0.0532846,118220.0,118210.0,0.55519065]
[1752930783736,0.24199294,118220.0,118210.0,0.55519065]
[1752930784518,0.25045145,118220.0,118210.0,0.55519065]
[1752930784720,0.06174297,118220.0,118210.0,0.55519065]
[1752930785059,0.25045145,118220.0,118210.0,0.55519065]
[1752930786152,0.25045145,118220.0,118210.0,0.56384764]
[1752930786591,0.24199294,118220.0,118210.0,0.56384764]
[1752930786773,0.25045138,118220.0,118210.0,0.56384764]
[1752930786987,0.24199294,118220.0,118210.0,0.56384764]
[1752930788187,0.25045138,118220.0,118210.0,0.56384764]
[1752930788972,0.07020141,118220.0,118210.0,0.56384764]
[1752930789123,0.25890997,118220.0,118210.0,0.56384764]
[1752930789363,0.25045138,118220.0,118210.0,0.56384764]
[1752930791503,0.25045138,118220.0,118210.0,0.55519065]
[1752930791911,0.25890997,118220.0,118210.0,0.55519065]
[1752930792092,0.25045138,118220.0,118210.0,0.55519065]
[1752930792411,0.07020141,118220.0,118210.0,0.55519065]
[1752930792633,0.25045138,118220.0,118210.0,0.55519065]
[1752930792925,0.07020141,118220.0,118210.0,0.55519065]
[1752930793134,0.24199294,118220.0,118210.0,0.55519065]
[1752930793348,0.23353457,118220.0,118210.0,0.55519065]
[1752930793561,0.20263457,118220.0,118210.0,0.55519065]
[1752930793773,0.19963457,118220.0,118210.0,0.56364184]
[1752930793989,0.20809294,118220.0,118210.0,0.56364184]
[1752930795236,0.19488294,118220.0,118210.0,0.56673184]
[1752930795796,0.2033411,118220.0,118210.0,0.56673184]
[1752930796230,0.19488273,118220.0,118210.0,0.56673184]
[1752930797438,0.20334117,118220.0,118210.0,0.56673184]
[1752930798499,0.19488273,118220.0,118210.0,0.56673184]
[1752930800067,0.20334117,118220.0,118210.0,0.56673184]
[1752930801344,0.20334117,118220.0,118210.0,0.55828065]
[1752930801620,0.24295746,118220.0,118210.0,0.55828065]
[1752930802026,0.24295738,118220.0,118210.0,0.55828065]
[1752930803247,0.25141604,118220.0,118210.0,0.55828065]
[1752930803451,0.25141604,118220.0,118210.0,0.55519065]
[1752930804298,0.24295738,118220.0,118210.0,0.55519065]
[1752930804731,0.22604043,118220.0,118210.0,0.55519065]
[1752930804942,0.04579046,118220.0,118210.0,0.55519065]
[1752930805152,0.23449887,118220.0,118210.0,0.55519065]
[1752930805876,0.22604043,118220.0,118210.0,0.55519065]
[1752930806108,0.23449887,118220.0,118210.0,0.55519065]
[1752930806524,0.22604043,118220.0,118210.0,0.55821065]
[1752930806712,0.23449887,118220.0,118210.0,0.55821065]
[1752930806867,0.22604043,118220.0,118210.0,0.55821065]
[1752930807503,0.23449887,118220.0,118210.0,0.55821065]
[1752930808384,0.24295746,118220.0,118210.0,0.55821065]
[1752930808791,0.23449887,118220.0,118210.0,0.55821065]
[1752930813105,0.25141619,118220.0,118210.0,0.55519065]
[1752930813313,0.25340619,118220.0,118210.0,0.55519065]
[1752930813711,0.24494746,118220.0,118210.0,0.55519065]
[1752930815858,0.25340619,118220.0,118210.0,0.55519065]
[1752930816068,0.24494746,118220.0,118210.0,0.55519065]
[1752930817995,0.25340626,118220.0,118210.0,0.42579065]
[1752930818202,0.59135188,118220.0,118210.0,0.55294065]
[1752930819124,0.41110191,118220.0,118210.0,0.55294065]
[1752930820378,0.40264347,118220.0,118210.0,0.55294065]
[1752930821759,0.40264347,118220.0,118210.0,0.55498065]
[1752930822376,0.05321739,118220.0,118210.0,0.55498065]
[1752930822612,0.40264347,118220.0,118210.0,0.55498065]
[1752930824163,0.23346693,118220.0,118210.0,0.55498065]
[1752930824431,0.24192501,118220.0,118210.0,0.55498065]
[1752930826480,0.25038367,118220.0,118210.0,0.55498065]
[1752930829590,0.24192501,118220.0,118210.0,0.55498065]
[1752930829927,0.25038367,118220.0,118210.0,0.55498065]
[1752930830103,0.24192501,118220.0,118210.0,0.55498065]
[1752930830513,0.25038367,118220.0,118210.0,0.55498065]
[1752930831144,0.24192551,118220.0,118210.0,0.55498065]
[1752930832816,0.41956042,118220.0,118210.0,0.55498065]
[1752930833423,0.41110205,118220.0,118210.0,0.55498065]
[1752930834839,0.39418488,118220.0,118210.0,0.55498065]
[1752930835409,0.57443485,118220.0,118210.0,0.42366065]
[1752930835622,0.56597605,118220.0,118210.0,0.55290065]
[1752930836414,0.56597605,118220.0,118210.0,0.08366065]
[1752930836591,0.56597605,118220.0,118210.0,0.21290065]
[1752930837609,0.56597605,118220.0,118210.0,0.21190065]
[1752930838251,0.56597605,118220.0,118210.0,0.21090065]
[1752930843445,0.20547611,118220.0,118210.0,0.21090065]
[1752930843648,0.56597605,118220.0,118210.0,0.21090065]
[1752930844252,0.20547611,118220.0,118210.0,0.21090065]
[1752930844461,0.56597605,118220.0,118210.0,0.21090065]
[1752930845441,0.39953318,118220.0,118210.0,0.21621065]
[1752930845651,0.20562523,118220.0,118210.0,0.21621065]
[1752930845851,0.02537526,118220.0,118210.0,0.21621065]
[1752930846264,0.38326064,118220.0,118210.0,0.21621065]
[1752930846482,0.57749358,118220.0,118210.0,0.21304065]
[1752930846685,0.57959358,118220.0,118210.0,0.21304065]
[1752930847338,0.58267358,118220.0,118210.0,0.21304065]
[1752930849489,0.57421485,118220.0,118210.0,0.21304065]
[1752930875700,0.57113485,118220.0,118210.0,0.21304065]
[1752930876541,0.57959344,118220.0,118210.0,0.21304065]
[1752930878747,0.56429344,118220.0,118210.0,0.21304065]
[1752930879071,0.54869344,118220.0,118210.0,0.21304065]
[1752930882047,0.1881935,118220.0,118210.0,0.21304065]
[1752930882265,0.54869344,118220.0,118210.0,0.21304065]
[1752930886659,0.1881935,118220.0,118210.0,0.21304065]
[1752930886880,0.54869344,118220.0,118210.0,0.21304065]
[1752930887296,0.00845844,118220.0,118210.0,0.21304065]
[1752930887472,0.19716664,118220.0,118210.0,0.21609065]
[1752930888403,0.2056253,118220.0,118210.0,0.71809065]
[1752930888570,0.2056253,118220.0,118210.0,0.21809065]
[1752930888770,0.2056253,118220.0,118210.0,0.71809065]
[1752930889273,0.38587527,118220.0,118210.0,0.71809065]
[1752930889775,0.55505138,118220.0,118210.0,0.71809065]
[1752930890402,0.37480141,118220.0,118210.0,0.71809065]
[1752930891933,0.38326021,118220.0,118210.0,0.71809065]
[1752930892556,0.2140841,118220.0,118210.0,0.71809065]
[1752930893370,0.38326021,118220.0,118210.0,0.71809065]
[1752930894091,0.2056253,118220.0,118210.0,0.71809065]
[1752930895562,0.19716664,118220.0,118210.0,0.21809065]
[1752930895783,0.19716657,118220.0,118210.0,0.21809065]
[1752930896601,0.20852022,118230.0,118210.0,0.57319065]
[1752930896824,0.18870813,118220.0,118210.0,0.57319065]
[1752930897035,0.18024997,118220.0,118210.0,0.57319065]
[1752930897444,0.18024997,118220.0,118210.0,0.57219065]
[1752930897649,0.18024997,118220.0,118210.0,0.57319065]
[1752930897884,0.00858396,118230.0,118210.0,0.75344062]
[1752930898088,0.00858389,118230.0,118220.0,0.08858028]
[1752930898303,0.00858396,118230.0,118220.0,0.09285498]
[1752930898625,0.18883393,118230.0,118220.0,0.09285498]
[1752930898856,0.18883393,118230.0,118220.0,0.10114074]
[1752930899531,0.19729159,118230.0,118220.0,0.10114074]
[1752930900934,0.20574932,118230.0,118220.0,0.10114074]
[1752930901781,0.19729159,118230.0,118220.0,0.10114074]
[1752930902437,0.20574939,118230.0,118220.0,0.10114074]
[1752930902868,0.19729159,118230.0,118220.0,0.10214074]
[1752930903113,0.19729159,118230.0,118220.0,0.10314074]
[1752930903311,0.18037635,118230.0,118220.0,0.10314074]
[1752930903563,0.00012638,118230.0,118220.0,0.44314074]
[1752930903780,0.18883379,118230.0,118220.0,0.44102604]
[1752930903987,0.00012638,118230.0,118220.0,0.44102604]
[1752930904206,0.18037635,118230.0,118220.0,0.44102604]
[1752930904659,0.18883386,118230.0,118220.0,0.44102604]
[1752930904837,0.20574924,118230.0,118220.0,0.44102604]
[1752930905174,0.20574917,118230.0,118220.0,0.44102604]
[1752930908450,0.22266498,118230.0,118220.0,0.42967028]
[1752930908683,0.04241501,118230.0,118220.0,0.42967028]
[1752930908925,0.22266498,118230.0,118220.0,0.42967028]
[1752930909156,0.22266491,118230.0,118220.0,0.42967028]
[1752930909377,0.21420697,118230.0,118220.0,0.42967028]
[1752930909831,0.22266542,118230.0,118220.0,0.42967028]
[1752930910041,0.39182722,118230.0,118220.0,0.42967028]
[1752930910479,0.39182722,118230.0,118220.0,0.43828374]
[1752930910695,0.21420733,118230.0,118220.0,0.43828374]
[1752930910933,0.22266527,118230.0,118220.0,0.43828374]
[1752930911658,0.0424153,118230.0,118220.0,0.43828374]
[1752930911910,0.22266527,118230.0,118220.0,0.43828374]
[1752930912361,0.22266527,118230.0,118220.0,0.42967028]
[1752930914663,0.21420733,118230.0,118220.0,0.42967028]
[1752930917292,0.00858396,118230.0,118220.0,0.46544028]
[1752930917707,0.00012638,118230.0,118220.0,0.46544028]
[1752930917923,0.00858389,118230.0,118220.0,0.46544028]
[1752930919004,0.00858389,118230.0,118220.0,0.44904028]
[1752930919928,0.01704155,118230.0,118220.0,0.43274028]
[1752930920117,0.02549935,118230.0,118220.0,0.43274028]
[1752930920715,0.01704155,118230.0,118220.0,0.43274028]
[1752930920935,0.20574939,118230.0,118220.0,0.43274028]
[1752930921160,0.19729152,118230.0,118220.0,0.43274028]
[1752930921635,0.00858389,118230.0,118220.0,0.43274028]
[1752930921871,0.19729152,118230.0,118220.0,0.43274028]
[1752930922091,0.18883386,118230.0,118220.0,0.43274028]
[1752930922322,0.19729152,118230.0,118220.0,0.43274028]
[1752930923023,0.20574932,118230.0,118220.0,0.43274028]
[1752930923754,0.19729152,118230.0,118220.0,0.43274028]
[1752930923962,0.20574932,118230.0,118220.0,0.43274028]
[1752930924186,0.19729152,118230.0,118220.0,0.43274028]
[1752930925268,0.20574932,118230.0,118220.0,0.43274028]
[1752930926172,0.19729152,118230.0,118220.0,0.43274028]
[1752930926406,0.20574932,118230.0,118220.0,0.43274028]
[1752930926876,0.20574925,118230.0,118220.0,0.43274028]
[1752930927577,0.19729152,118230.0,118220.0,0.43274028]
[1752930928273,0.18883386,118230.0,118220.0,0.43274028]
[1752930928470,0.00858389,118230.0,118220.0,0.43274028]
[1752930928681,0.18883386,118230.0,118220.0,0.43274028]
[1752930929637,0.00858389,118230.0,118220.0,0.43274028]
[1752930929843,0.00012638,118230.0,118220.0,0.43274028]
[1752930930126,0.00012638,118230.0,118220.0,0.46358113]
[1752930930336,0.00012638,118230.0,118220.0,0.6438311]
[1752930930532,0.24447483,118240.0,118230.0,0.34]
[1752930930736,0.24447483,118240.0,118230.0,0.55687971]
[1752930930737,0.25293191,118240.0,118230.0,0.55687971]
[1752930931153,0.25293248,118240.0,118230.0,0.55687971]
[1752930931367,0.4187731,118240.0,118230.0,0.55687971]
[1752930931806,0.41031616,118240.0,118230.0,0.55687971]
[1752930932294,0.59056613,118240.0,118230.0,0.55687971]
[1752930933492,0.41031616,118240.0,118230.0,0.55687971]
[1752930933763,0.40185908,118240.0,118230.0,0.55473971]
[1752930933958,0.58210905,118240.0,118230.0,0.55473971]
[1752930936365,0.57365189,118240.0,118230.0,0.42565971]
[1752930936576,0.57365189,118240.0,118230.0,0.21469971]
[1752930936800,0.75390186,118240.0,118230.0,0.21469971]
[1752930937014,0.57365189,118240.0,118230.0,0.21469971]
[1752930940786,0.21315195,118240.0,118230.0,0.21469971]
[1752930941012,0.57365189,118240.0,118230.0,0.21469971]
[1752930942850,0.21315195,118240.0,118230.0,0.21469971]
[1752930943083,0.57365189,118240.0,118230.0,0.21469971]
[1752930947019,0.21315195,118240.0,118230.0,0.21469971]
[1752930947251,0.57365189,118240.0,118230.0,0.21469971]
[1752930958516,0.75390186,118240.0,118230.0,0.08565971]
[1752930958740,0.75390186,118240.0,118230.0,0.21469971]
[1752930960109,0.21315195,118240.0,118230.0,0.21469971]
[1752930960233,0.75390186,118240.0,118230.0,0.21469971]
[1752930961989,0.75390186,118240.0,118230.0,0.08565971]
[1752930962200,0.75390186,118240.0,118230.0,0.21469971]
[1752930963560,0.57365189,118240.0,118230.0,0.21469971]
[1752930963749,0.75390186,118240.0,118230.0,0.21469971]
[1752930965907,0.57365189,118240.0,118230.0,0.21469971]
[1752930968903,0.21315195,118240.0,118230.0,0.21469971]
[1752930969108,0.57365189,118240.0,118230.0,0.21469971]
[1752930973344,0.21315195,118240.0,118230.0,0.21469971]
[1752930973523,0.57365189,118240.0,118230.0,0.21469971]
[1752930977868,0.21315195,118240.0,118230.0,0.21469971]
[1752930978062,0.57365189,118240.0,118230.0,0.21469971]
[1752930978530,0.53810473,118240.0,118230.0,0.21677971]
[1752930978737,0.53810473,118240.0,118230.0,0.21980971]
[1752930979498,0.57155473,118240.0,118230.0,0.21677971]
[1752930980223,0.57155473,118240.0,118230.0,0.21469971]
[1752930980436,0.57455473,118240.0,118230.0,0.21469971]
[1752930981086,0.21405479,118240.0,118230.0,0.21672971]
[1752930981291,0.16420749,118240.0,118230.0,0.21672971]
[1752930981530,0.34445746,118240.0,118230.0,0.21989971]
[1752930981966,0.52470743,118240.0,118230.0,0.21989971]
[1752930983872,0.16420749,118240.0,118230.0,0.21989971]
[1752930984085,0.52470743,118240.0,118230.0,0.21989971]
[1752930984516,0.16420749,118240.0,118230.0,0.21989971]
[1752930984717,0.52470743,118240.0,118230.0,0.21989971]
[1752930988243,0.16420749,118240.0,118230.0,0.21989971]
[1752930988439,0.52470743,118240.0,118230.0,0.21989971]
[1752930992871,0.34445746,118240.0,118230.0,0.21989971]
[1752930993092,0.53810423,118240.0,118230.0,0.21989971]
[1752930993466,0.01691417,118240.0,118230.0,0.21989971]
[1752930993673,0.19716414,118240.0,118230.0,0.25069971]
[1752930993872,0.38322587,118240.0,118230.0,0.25069971]
[1752930994073,0.37476907,118240.0,118230.0,0.25069971]
[1752930994465,0.36631206,118240.0,118230.0,0.25069971]
[1752930995010,0.18606209,118240.0,118230.0,0.25069971]
[1752930995210,0.36631206,118240.0,118230.0,0.25069971]
[1752930996789,0.18606209,118240.0,118230.0,0.25069971]
[1752930997199,0.36631206,118240.0,118230.0,0.25069971]
[1752930997738,0.20562151,118240.0,118230.0,0.25917929]
[1752930998505,0.374769,118240.0,118230.0,0.25917929]
[1752930999142,0.38322637,118240.0,118230.0,0.25917929]